[Event "Late-Titled-Tuesday-Blitz-February-06-2024"]
[Site "Chess.com"]
[Date "2024.02.06"]
[Round "4"]
[White "yuriydovzik"]
[Black "egnfanclub"]
[Result "0-1"]
[WhiteElo "2203"]
[BlackElo "2360"]
[TimeControl "180+1"]
[EndTime "14:37:49 PST"]
[Termination "egnfanclub won on time"]

1. e4 {[%clk 0:02:54.1]} 1... e5 {[%clk 0:02:59.7]} 2. Nf3 {[%clk 0:02:53.3]}
2... Nc6 {[%clk 0:02:59.9]} 3. Bb5 {[%clk 0:02:53.1]} 3... a6 {[%clk 0:03:00]}
4. Ba4 {[%clk 0:02:52.4]} 4... d6 {[%clk 0:02:59.8]} 5. O-O {[%clk 0:02:48.6]}
5... Bg4 {[%clk 0:02:59.4]} 6. c3 {[%clk 0:02:38.8]} 6... Qf6 {[%clk 0:02:58.1]}
7. d3 {[%clk 0:02:30.3]} 7... Ne7 {[%clk 0:02:52.7]} 8. Nbd2 {[%clk 0:02:27.2]}
8... Ng6 {[%clk 0:02:51.9]} 9. h3 {[%clk 0:02:25]} 9... h5 {[%clk 0:02:50.5]}
10. Re1 {[%clk 0:02:19.1]} 10... Nf4 {[%clk 0:02:50.7]} 11. Re3 {[%clk 0:01:56]}
11... Bd7 {[%clk 0:02:08.1]} 12. Nf1 {[%clk 0:01:47.2]} 12... g5 {[%clk
0:02:04.1]} 13. N3h2 {[%clk 0:01:31.1]} 13... Qg6 {[%clk 0:01:34.4]} 14. Rg3
{[%clk 0:01:24.5]} 14... O-O-O {[%clk 0:01:24.5]} 15. h4 {[%clk 0:01:17.6]}
15... f6 {[%clk 0:01:18.7]} 16. Ne3 {[%clk 0:00:59.9]} 16... Bh6 {[%clk
0:01:06]} 17. Nf5 {[%clk 0:00:54.8]} 17... Bxf5 {[%clk 0:01:00.6]} 18. exf5
{[%clk 0:00:51]} 18... Qxf5 {[%clk 0:01:01.5]} 19. Bxc6 {[%clk 0:00:50.1]} 19...
bxc6 {[%clk 0:01:02.4]} 20. Qa4 {[%clk 0:00:38.9]} 20... Kd7 {[%clk 0:01:02.6]}
21. Bxf4 {[%clk 0:00:35.8]} 21... exf4 {[%clk 0:00:58.5]} 22. Rf3 {[%clk
0:00:22.8]} 22... g4 {[%clk 0:00:56.6]} 0-1

[Event "Late-Titled-Tuesday-Blitz-February-06-2024"]
[Site "Chess.com"]
[Date "2024.02.06"]
[Round "4"]
[White "jcibarra"]
[Black "Orest_Vovk"]
[Result "1-0"]
[WhiteElo "2885"]
[BlackElo "2580"]
[TimeControl "180+1"]
[EndTime "14:37:50 PST"]
[Termination "jcibarra won on time"]

1. e4 {[%clk 0:03:00.9]} 1... g5 {[%clk 0:02:35.9]} 2. d4 {[%clk 0:02:51.3]}
2... g4 {[%clk 0:02:30.9]} 3. h3 {[%clk 0:02:47.1]} 3... d5 {[%clk 0:02:28]} 4.
e5 {[%clk 0:02:45.3]} 4... c5 {[%clk 0:02:22.8]} 5. c3 {[%clk 0:02:44.7]} 5...
Nc6 {[%clk 0:02:21.8]} 6. hxg4 {[%clk 0:02:42.1]} 6... cxd4 {[%clk 0:02:14.2]}
7. cxd4 {[%clk 0:02:42.3]} 7... Qb6 {[%clk 0:02:14.3]} 8. Be3 {[%clk 0:02:08]}
8... Qxb2 {[%clk 0:02:02.7]} 9. Nd2 {[%clk 0:02:07.9]} 9... Nxd4 {[%clk
0:01:55.6]} 10. Bxd4 {[%clk 0:01:49.5]} 10... Qxd4 {[%clk 0:01:52.5]} 11. Bb5+
{[%clk 0:01:50.1]} 11... Kd8 {[%clk 0:01:46.4]} 12. Ngf3 {[%clk 0:01:47]} 12...
Qxg4 {[%clk 0:01:42.5]} 13. Qb3 {[%clk 0:01:31.8]} 13... e6 {[%clk 0:01:31.8]}
14. Rh4 {[%clk 0:01:20.9]} 14... Qxg2 {[%clk 0:01:23.7]} 15. Rc1 {[%clk
0:01:16.3]} 15... b6 {[%clk 0:00:37.7]} 16. Qa4 {[%clk 0:01:00.4]} 16... Bc5
{[%clk 0:00:07.8]} 17. Rxc5 {[%clk 0:01:00]} 17... bxc5 {[%clk 0:00:08]} 18.
Qa5+ {[%clk 0:01:00.7]} 18... Ke7 {[%clk 0:00:08.5]} 19. Bc6 {[%clk 0:00:49.8]}
19... Rb8 {[%clk 0:00:02.7]} 20. Qxc5+ {[%clk 0:00:48.3]} 1-0

[Event "Late-Titled-Tuesday-Blitz-February-06-2024"]
[Site "Chess.com"]
[Date "2024.02.06"]
[Round "4"]
[White "Der_Balak_3Halak"]
[Black "BebeBonito2022"]
[Result "1-0"]
[WhiteElo "2514"]
[BlackElo "2328"]
[TimeControl "180+1"]
[EndTime "14:37:56 PST"]
[Termination "Der_Balak_3Halak won by resignation"]

1. Nf3 {[%clk 0:03:00.9]} 1... Nf6 {[%clk 0:02:58.7]} 2. g3 {[%clk 0:03:00.6]}
2... d5 {[%clk 0:02:58.2]} 3. Bg2 {[%clk 0:03:00.7]} 3... Bg4 {[%clk 0:02:58]}
4. O-O {[%clk 0:03:00.5]} 4... Nbd7 {[%clk 0:02:58.1]} 5. d4 {[%clk 0:02:59.3]}
5... e6 {[%clk 0:02:56.4]} 6. Re1 {[%clk 0:02:56.1]} 6... c6 {[%clk 0:02:53.1]}
7. c3 {[%clk 0:02:55.5]} 7... Bd6 {[%clk 0:02:48]} 8. Nbd2 {[%clk 0:02:54.9]}
8... O-O {[%clk 0:02:46.4]} 9. e4 {[%clk 0:02:55.2]} 9... dxe4 {[%clk
0:02:46.6]} 10. Nxe4 {[%clk 0:02:56.1]} 10... Nxe4 {[%clk 0:02:46.8]} 11. Rxe4
{[%clk 0:02:57]} 11... Nf6 {[%clk 0:02:46.9]} 12. Bg5 {[%clk 0:02:55.7]} 12...
Bxf3 {[%clk 0:02:43]} 13. Qxf3 {[%clk 0:02:54.3]} 13... h6 {[%clk 0:02:37.9]}
14. Bxf6 {[%clk 0:02:53.8]} 14... Qxf6 {[%clk 0:02:37.6]} 15. Qxf6 {[%clk
0:02:53.4]} 15... gxf6 {[%clk 0:02:38]} 16. Rae1 {[%clk 0:02:49.5]} 16... a5
{[%clk 0:02:30.6]} 17. a4 {[%clk 0:02:47.9]} 17... Ra6 {[%clk 0:02:28.5]} 18. f4
{[%clk 0:02:36]} 18... f5 {[%clk 0:02:26.7]} 19. R4e2 {[%clk 0:02:32.4]} 19...
Rb6 {[%clk 0:02:22]} 20. h3 {[%clk 0:02:28.7]} 20... h5 {[%clk 0:02:14.3]} 21.
Kf2 {[%clk 0:02:28.8]} 21... h4 {[%clk 0:02:13.5]} 22. Rg1 {[%clk 0:02:01.2]}
22... hxg3+ {[%clk 0:02:07.5]} 23. Kxg3 {[%clk 0:02:02.1]} 23... Kh7 {[%clk
0:02:06.8]} 24. Kf3 {[%clk 0:01:55]} 24... Rg8 {[%clk 0:02:05.4]} 25. Rb1 {[%clk
0:01:47.7]} 25... Rb3 {[%clk 0:02:01.2]} 26. Bf1 {[%clk 0:01:18.7]} 26... b5
{[%clk 0:01:28.8]} 27. axb5 {[%clk 0:01:14.4]} 27... cxb5 {[%clk 0:01:29]} 28.
d5 {[%clk 0:01:01.8]} 28... Rg6 {[%clk 0:01:02.7]} 29. Rd2 {[%clk 0:00:58]}
29... e5 {[%clk 0:00:59.7]} 30. fxe5 {[%clk 0:00:54.4]} 30... Bxe5 {[%clk
0:01:00.1]} 31. Bd3 {[%clk 0:00:51.8]} 31... Rg3+ {[%clk 0:00:53.7]} 32. Kf2
{[%clk 0:00:47.5]} 32... Kg6 {[%clk 0:00:46.1]} 33. Bc2 {[%clk 0:00:47.7]} 33...
Bxc3 {[%clk 0:00:41]} 34. Bxb3 {[%clk 0:00:44]} 34... Bxd2 {[%clk 0:00:40]} 35.
Kxg3 {[%clk 0:00:44.7]} 1-0

[Event "Late-Titled-Tuesday-Blitz-February-06-2024"]
[Site "Chess.com"]
[Date "2024.02.06"]
[Round "4"]
[White "DinaBelenkaya"]
[Black "brm72"]
[Result "1-0"]
[WhiteElo "2434"]
[BlackElo "2629"]
[TimeControl "180+1"]
[EndTime "14:37:58 PST"]
[Termination "DinaBelenkaya won by resignation"]

1. Nf3 {[%clk 0:03:00.9]} 1... e6 {[%clk 0:02:59.3]} 2. g3 {[%clk 0:03:00.5]}
2... b6 {[%clk 0:02:59.3]} 3. Bg2 {[%clk 0:03:00.4]} 3... Bb7 {[%clk 0:03:00.2]}
4. d3 {[%clk 0:03:00.3]} 4... Nf6 {[%clk 0:02:59.4]} 5. Nbd2 {[%clk 0:02:52.7]}
5... d5 {[%clk 0:02:56.9]} 6. O-O {[%clk 0:02:52.6]} 6... Be7 {[%clk 0:02:57]}
7. Re1 {[%clk 0:02:51.7]} 7... O-O {[%clk 0:02:56.8]} 8. c3 {[%clk 0:02:43.2]}
8... Nbd7 {[%clk 0:02:56.3]} 9. Qc2 {[%clk 0:02:43.4]} 9... c5 {[%clk
0:02:56.4]} 10. e4 {[%clk 0:02:43.9]} 10... dxe4 {[%clk 0:02:46.9]} 11. dxe4
{[%clk 0:02:44.8]} 11... Qc7 {[%clk 0:02:37.1]} 12. e5 {[%clk 0:02:36.4]} 12...
Nd5 {[%clk 0:02:02.8]} 13. a4 {[%clk 0:02:09.6]} 13... Rfd8 {[%clk 0:01:58.3]}
14. Nc4 {[%clk 0:02:09.3]} 14... a6 {[%clk 0:01:53.9]} 15. Ng5 {[%clk
0:02:02.7]} 15... g6 {[%clk 0:01:48.5]} 16. h4 {[%clk 0:01:50.2]} 16... b5
{[%clk 0:01:45.7]} 17. axb5 {[%clk 0:01:47]} 17... axb5 {[%clk 0:01:46.6]} 18.
Rxa8 {[%clk 0:01:46.7]} 18... Rxa8 {[%clk 0:01:46.3]} 19. Nd6 {[%clk 0:01:47.6]}
19... Bxd6 {[%clk 0:01:12.2]} 20. exd6 {[%clk 0:01:48.5]} 20... Qxd6 {[%clk
0:01:12.9]} 21. Ne4 {[%clk 0:01:40.8]} 21... Qf8 {[%clk 0:01:04.6]} 22. h5
{[%clk 0:01:40.3]} 22... Rb8 {[%clk 0:00:42.5]} 23. Bg5 {[%clk 0:01:33.2]} 23...
h6 {[%clk 0:00:38.6]} 24. hxg6 {[%clk 0:00:52.8]} 24... hxg5 {[%clk 0:00:37.2]}
25. Nxg5 {[%clk 0:00:53.3]} 25... fxg6 {[%clk 0:00:15.8]} 26. Qxg6+ {[%clk
0:00:51.1]} 26... Qg7 {[%clk 0:00:14.2]} 27. Qxe6+ {[%clk 0:00:51.3]} 27... Kh8
{[%clk 0:00:14.7]} 28. Nf7+ {[%clk 0:00:49.7]} 28... Kh7 {[%clk 0:00:15.2]} 29.
Be4+ {[%clk 0:00:47.9]} 1-0

[Event "Late-Titled-Tuesday-Blitz-February-06-2024"]
[Site "Chess.com"]
[Date "2024.02.06"]
[Round "4"]
[White "MikaelyanArman"]
[Black "manitodeplomo"]
[Result "1-0"]
[WhiteElo "2862"]
[BlackElo "2624"]
[TimeControl "180+1"]
[EndTime "14:37:59 PST"]
[Termination "MikaelyanArman won by resignation"]

1. d4 {[%clk 0:03:00.9]} 1... Nf6 {[%clk 0:02:55.7]} 2. c4 {[%clk 0:03:01.1]}
2... e6 {[%clk 0:02:56]} 3. Nf3 {[%clk 0:03:00.8]} 3... b6 {[%clk 0:02:55.7]} 4.
a3 {[%clk 0:03:00.2]} 4... Bb7 {[%clk 0:02:53.7]} 5. Nc3 {[%clk 0:03:00.7]} 5...
d5 {[%clk 0:02:52.5]} 6. cxd5 {[%clk 0:03:00.9]} 6... Nxd5 {[%clk 0:02:52.3]} 7.
e3 {[%clk 0:03:01.2]} 7... g6 {[%clk 0:02:50.3]} 8. Bb5+ {[%clk 0:03:00.4]} 8...
c6 {[%clk 0:02:49.9]} 9. Bd3 {[%clk 0:03:01]} 9... Bg7 {[%clk 0:02:50.2]} 10. e4
{[%clk 0:03:01.3]} 10... Nxc3 {[%clk 0:02:49.7]} 11. bxc3 {[%clk 0:03:02.2]}
11... O-O {[%clk 0:02:50.1]} 12. Bg5 {[%clk 0:02:47.5]} 12... Qc7 {[%clk
0:02:46.4]} 13. O-O {[%clk 0:02:43.1]} 13... c5 {[%clk 0:02:46.7]} 14. Qe2
{[%clk 0:02:36.1]} 14... Nc6 {[%clk 0:02:42.9]} 15. e5 {[%clk 0:02:22.6]} 15...
Na5 {[%clk 0:02:15.4]} 16. Be4 {[%clk 0:02:02.5]} 16... Bxe4 {[%clk 0:02:04.7]}
17. Qxe4 {[%clk 0:02:03.4]} 17... Qc6 {[%clk 0:02:04.2]} 18. Qh4 {[%clk
0:01:54.6]} 18... cxd4 {[%clk 0:01:58.9]} 19. cxd4 {[%clk 0:01:55.5]} 19... Rfc8
{[%clk 0:01:57.1]} 20. Bf6 {[%clk 0:01:53.1]} 20... Bf8 {[%clk 0:01:47.4]} 21.
Rae1 {[%clk 0:01:45.7]} 21... Nc4 {[%clk 0:01:33.1]} 22. Re4 {[%clk 0:01:43.4]}
22... h6 {[%clk 0:01:09.8]} 23. Rg4 {[%clk 0:01:36.8]} 23... Qa4 {[%clk
0:00:44.9]} 24. Qg3 {[%clk 0:01:08.7]} 24... Qc2 {[%clk 0:00:40.9]} 25. h4
{[%clk 0:01:09.2]} 25... Qf5 {[%clk 0:00:32.5]} 26. Rf4 {[%clk 0:01:03.9]} 26...
Qd3 {[%clk 0:00:30.8]} 27. h5 {[%clk 0:01:00]} 27... Rc6 {[%clk 0:00:22.9]} 28.
Rg4 {[%clk 0:00:56.7]} 28... Kh7 {[%clk 0:00:20.4]} 29. Ng5+ {[%clk 0:00:53.6]}
29... hxg5 {[%clk 0:00:17.3]} 30. Qxd3 {[%clk 0:00:52.9]} 1-0

[Event "Late-Titled-Tuesday-Blitz-February-06-2024"]
[Site "Chess.com"]
[Date "2024.02.06"]
[Round "4"]
[White "alphienothere"]
[Black "Mikhail_Golubev"]
[Result "0-1"]
[WhiteElo "2249"]
[BlackElo "2666"]
[TimeControl "180+1"]
[EndTime "14:37:59 PST"]
[Termination "Mikhail_Golubev won by checkmate"]

1. d4 {[%clk 0:03:00.9]} 1... Nf6 {[%clk 0:02:59.2]} 2. Nf3 {[%clk 0:03:00.6]}
2... g6 {[%clk 0:02:58.6]} 3. Bg5 {[%clk 0:03:00.5]} 3... Bg7 {[%clk 0:02:58.1]}
4. Nbd2 {[%clk 0:03:01.1]} 4... O-O {[%clk 0:02:53.9]} 5. e4 {[%clk 0:03:01.4]}
5... d6 {[%clk 0:02:54.1]} 6. Bd3 {[%clk 0:03:01.4]} 6... Nc6 {[%clk 0:02:47.5]}
7. O-O {[%clk 0:03:00]} 7... e5 {[%clk 0:02:47.4]} 8. c3 {[%clk 0:02:58.5]} 8...
h6 {[%clk 0:02:43.9]} 9. Bh4 {[%clk 0:02:55.4]} 9... Qe8 {[%clk 0:02:32.3]} 10.
d5 {[%clk 0:02:53.1]} 10... Nb8 {[%clk 0:02:26.6]} 11. Re1 {[%clk 0:02:53.1]}
11... Nh5 {[%clk 0:02:20.2]} 12. Bg3 {[%clk 0:02:48.5]} 12... Na6 {[%clk
0:02:07]} 13. Bxa6 {[%clk 0:02:47]} 13... bxa6 {[%clk 0:02:06.6]} 14. Nf1 {[%clk
0:02:46.1]} 14... f5 {[%clk 0:02:02.7]} 15. exf5 {[%clk 0:02:41.1]} 15... gxf5
{[%clk 0:02:03.2]} 16. Bh4 {[%clk 0:02:12]} 16... Qg6 {[%clk 0:01:47.7]} 17. Ng3
{[%clk 0:02:07.7]} 17... Nf4 {[%clk 0:01:43.4]} 18. c4 {[%clk 0:01:52.3]} 18...
Rf7 {[%clk 0:01:12.1]} 19. Qa4 {[%clk 0:01:30.9]} 19... Bd7 {[%clk 0:01:04.7]}
20. Qxa6 {[%clk 0:01:30.2]} 20... Nxg2 {[%clk 0:00:59.4]} 21. Kxg2 {[%clk
0:01:29.6]} 21... f4 {[%clk 0:00:59.6]} 22. c5 {[%clk 0:01:19.5]} 22... fxg3
{[%clk 0:00:52]} 23. hxg3 {[%clk 0:01:14.9]} 23... Raf8 {[%clk 0:00:50.9]} 24.
Re3 {[%clk 0:01:12.1]} 24... e4 {[%clk 0:00:42.4]} 25. cxd6 {[%clk 0:01:11.3]}
25... exf3+ {[%clk 0:00:39.3]} 26. Kg1 {[%clk 0:01:08.6]} 26... cxd6 {[%clk
0:00:37.4]} 27. Qxa7 {[%clk 0:01:07.3]} 27... Bh3 {[%clk 0:00:20.6]} 28. Qa3
{[%clk 0:01:01]} 28... Bg2 {[%clk 0:00:19.6]} 29. Be7 {[%clk 0:00:55.9]} 29...
Qh5 {[%clk 0:00:15.7]} 30. Bxf8 {[%clk 0:00:50.8]} 30... Qh1# {[%clk 0:00:15.1]}
0-1

[Event "Late-Titled-Tuesday-Blitz-February-06-2024"]
[Site "Chess.com"]
[Date "2024.02.06"]
[Round "4"]
[White "SpeedofLight0"]
[Black "snowlord"]
[Result "1-0"]
[WhiteElo "3043"]
[BlackElo "2867"]
[TimeControl "180+1"]
[EndTime "14:38:01 PST"]
[Termination "SpeedofLight0 won by resignation"]

1. d4 {[%clk 0:03:00.9]} 1... d5 {[%clk 0:02:59.1]} 2. Nc3 {[%clk 0:03:00.9]}
2... Nf6 {[%clk 0:02:59]} 3. Bf4 {[%clk 0:03:01.1]} 3... e6 {[%clk 0:02:58.9]}
4. e3 {[%clk 0:03:01.4]} 4... Bb4 {[%clk 0:02:58.7]} 5. Bd3 {[%clk 0:03:01.6]}
5... c5 {[%clk 0:02:56.3]} 6. dxc5 {[%clk 0:03:02.5]} 6... Nbd7 {[%clk
0:02:56.3]} 7. Nf3 {[%clk 0:03:03.2]} 7... Nxc5 {[%clk 0:02:56.3]} 8. O-O {[%clk
0:03:04]} 8... Bxc3 {[%clk 0:02:54.7]} 9. bxc3 {[%clk 0:03:04]} 9... O-O {[%clk
0:02:55.4]} 10. Bg5 {[%clk 0:03:04.5]} 10... h6 {[%clk 0:02:55.4]} 11. Bh4
{[%clk 0:03:04.1]} 11... b6 {[%clk 0:02:42.3]} 12. Ne5 {[%clk 0:02:44.8]} 12...
Bb7 {[%clk 0:02:38.2]} 13. Ng4 {[%clk 0:02:44.3]} 13... Ncd7 {[%clk 0:02:37.6]}
14. Bb5 {[%clk 0:02:41.4]} 14... Qc7 {[%clk 0:02:34.9]} 15. Nxf6+ {[%clk
0:02:38.7]} 15... Nxf6 {[%clk 0:02:35.8]} 16. Bxf6 {[%clk 0:02:38.7]} 16... gxf6
{[%clk 0:02:36.7]} 17. Qg4+ {[%clk 0:02:37.8]} 17... Kh7 {[%clk 0:02:34.3]} 18.
Bd3+ {[%clk 0:02:18.6]} 18... f5 {[%clk 0:02:34.8]} 19. c4 {[%clk 0:02:15.4]}
19... Rg8 {[%clk 0:02:30.7]} 20. Bxf5+ {[%clk 0:02:07.1]} 20... exf5 {[%clk
0:02:30.5]} 21. Qxf5+ {[%clk 0:02:08]} 21... Rg6 {[%clk 0:02:23.5]} 22. cxd5
{[%clk 0:02:07.4]} 22... Rg8 {[%clk 0:02:06.9]} 23. g3 {[%clk 0:02:07.1]} 23...
Qc8 {[%clk 0:02:04.1]} 24. Qxf7+ {[%clk 0:02:03.3]} 24... R8g7 {[%clk
0:02:04.5]} 25. Qf3 {[%clk 0:02:03.2]} 25... Qxc2 {[%clk 0:01:46.1]} 26. e4
{[%clk 0:02:03.4]} 26... Qc8 {[%clk 0:01:32.5]} 27. Rad1 {[%clk 0:01:57]} 27...
Qh3 {[%clk 0:01:08.5]} 28. Rfe1 {[%clk 0:01:56.4]} 28... Bc8 {[%clk 0:01:07.3]}
29. Qg2 {[%clk 0:01:51.8]} 29... Qh5 {[%clk 0:01:06.1]} 30. e5 {[%clk 0:01:42]}
30... Bh3 {[%clk 0:01:03.1]} 31. Qe4 {[%clk 0:01:41.8]} 31... Bf5 {[%clk
0:01:03.1]} 32. Qg2 {[%clk 0:01:39.4]} 32... Bh3 {[%clk 0:00:48]} 33. Qe4 {[%clk
0:01:39.2]} 33... Bf5 {[%clk 0:00:48.2]} 34. Qe3 {[%clk 0:01:39.8]} 34... Bg4
{[%clk 0:00:39.1]} 35. Rd3 {[%clk 0:01:37.6]} 35... Bf5 {[%clk 0:00:39.3]} 36.
Rd4 {[%clk 0:01:35.2]} 36... Rg4 {[%clk 0:00:31]} 37. e6 {[%clk 0:01:33.5]}
37... Rxd4 {[%clk 0:00:28.6]} 38. Qxd4 {[%clk 0:01:34.4]} 38... Qf3 {[%clk
0:00:29.1]} 39. e7 {[%clk 0:01:26.7]} 39... Rg4 {[%clk 0:00:05.2]} 40. Qxg4
{[%clk 0:01:19.9]} 1-0

[Event "Late-Titled-Tuesday-Blitz-February-06-2024"]
[Site "Chess.com"]
[Date "2024.02.06"]
[Round "4"]
[White "OparinGrigoriy"]
[Black "Bilan_Danila"]
[Result "1-0"]
[WhiteElo "2991"]
[BlackElo "2606"]
[TimeControl "180+1"]
[EndTime "14:38:05 PST"]
[Termination "OparinGrigoriy won on time"]

1. a3 {[%clk 0:03:00.9]} 1... d5 {[%clk 0:02:57.9]} 2. Nf3 {[%clk 0:03:00.6]}
2... Nf6 {[%clk 0:02:58.2]} 3. e3 {[%clk 0:03:00.7]} 3... Bg4 {[%clk 0:02:57.5]}
4. h3 {[%clk 0:03:00.3]} 4... Bh5 {[%clk 0:02:57.3]} 5. b4 {[%clk 0:03:00.2]}
5... e6 {[%clk 0:02:52.4]} 6. Bb2 {[%clk 0:03:00.6]} 6... Nbd7 {[%clk 0:02:51]}
7. d3 {[%clk 0:03:00.4]} 7... a5 {[%clk 0:02:49.1]} 8. b5 {[%clk 0:03:00.4]}
8... Bd6 {[%clk 0:02:46]} 9. Nbd2 {[%clk 0:02:58.9]} 9... Qe7 {[%clk 0:02:43]}
10. g4 {[%clk 0:02:59]} 10... Bg6 {[%clk 0:02:43]} 11. Bg2 {[%clk 0:02:59.6]}
11... c6 {[%clk 0:02:41.1]} 12. a4 {[%clk 0:02:58.7]} 12... e5 {[%clk
0:02:37.2]} 13. Nh4 {[%clk 0:02:54.9]} 13... O-O {[%clk 0:02:19.3]} 14. O-O
{[%clk 0:02:49.6]} 14... e4 {[%clk 0:02:11.1]} 15. dxe4 {[%clk 0:02:49.4]} 15...
Nxe4 {[%clk 0:02:00.9]} 16. Nxg6 {[%clk 0:02:48.4]} 16... hxg6 {[%clk
0:01:57.2]} 17. Nxe4 {[%clk 0:02:45.9]} 17... dxe4 {[%clk 0:01:56.8]} 18. Qd4
{[%clk 0:02:45.5]} 18... Nf6 {[%clk 0:01:31.8]} 19. g5 {[%clk 0:02:41.3]} 19...
Nh5 {[%clk 0:01:31.8]} 20. Rad1 {[%clk 0:02:20.4]} 20... Rad8 {[%clk 0:01:20.4]}
21. Qxe4 {[%clk 0:02:19.3]} 21... Qxg5 {[%clk 0:01:11.2]} 22. bxc6 {[%clk
0:02:19.2]} 22... bxc6 {[%clk 0:01:11.3]} 23. Qxc6 {[%clk 0:02:17]} 23... Be5
{[%clk 0:01:02]} 24. f4 {[%clk 0:02:09.3]} 24... Nxf4 {[%clk 0:00:30.7]} 25.
exf4 {[%clk 0:02:10.2]} 25... Bxf4 {[%clk 0:00:27.2]} 26. Rxd8 {[%clk
0:02:03.3]} 26... Rxd8 {[%clk 0:00:22]} 27. Qf3 {[%clk 0:02:02.5]} 27... Be3+
{[%clk 0:00:17.1]} 28. Kh1 {[%clk 0:02:03]} 28... f6 {[%clk 0:00:12]} 29. c4
{[%clk 0:02:02]} 29... Rd2 {[%clk 0:00:08.3]} 30. Bc3 {[%clk 0:02:02.1]} 30...
Rd3 {[%clk 0:00:05.1]} 31. Be1 {[%clk 0:01:53.4]} 31... Kh7 {[%clk 0:00:04.7]}
32. Bf2 {[%clk 0:01:51.9]} 32... Rb3 {[%clk 0:00:01.8]} 33. Bxe3 {[%clk
0:01:40.2]} 33... Rxe3 {[%clk 0:00:02.7]} 34. Qd5 {[%clk 0:01:40.8]} 34... Re5
{[%clk 0:00:03]} 35. Qd3 {[%clk 0:01:37.1]} 35... Re3 {[%clk 0:00:03.1]} 36. Qc2
{[%clk 0:01:34.5]} 36... Qh4 {[%clk 0:00:02.9]} 37. c5 {[%clk 0:01:32]} 37...
Re1 {[%clk 0:00:03]} 38. Qd3 {[%clk 0:01:22.9]} 38... Rxf1+ {[%clk 0:00:02]} 39.
Qxf1 {[%clk 0:01:23.8]} 39... Qd4 {[%clk 0:00:01.2]} 40. c6 {[%clk 0:01:24]} 1-0

[Event "Late-Titled-Tuesday-Blitz-February-06-2024"]
[Site "Chess.com"]
[Date "2024.02.06"]
[Round "4"]
[White "SHIVACalypso"]
[Black "Hamisandwich"]
[Result "0-1"]
[WhiteElo "2530"]
[BlackElo "2741"]
[TimeControl "180+1"]
[EndTime "14:38:05 PST"]
[Termination "Hamisandwich won by checkmate"]

1. Nf3 {[%clk 0:02:51]} 1... c5 {[%clk 0:02:51]} 2. c4 {[%clk 0:02:50.5]} 2...
e6 {[%clk 0:02:48.4]} 3. g3 {[%clk 0:02:49.9]} 3... Nf6 {[%clk 0:02:42.8]} 4.
Bg2 {[%clk 0:02:50.1]} 4... d5 {[%clk 0:02:43.3]} 5. cxd5 {[%clk 0:02:49.4]}
5... exd5 {[%clk 0:02:33.4]} 6. O-O {[%clk 0:02:50.3]} 6... Nc6 {[%clk
0:02:29.9]} 7. b3 {[%clk 0:02:50.1]} 7... Bf5 {[%clk 0:02:22.5]} 8. Bb2 {[%clk
0:02:49.4]} 8... d4 {[%clk 0:02:19.4]} 9. d3 {[%clk 0:02:49.4]} 9... Be7 {[%clk
0:02:13.3]} 10. Nbd2 {[%clk 0:02:49.9]} 10... h6 {[%clk 0:02:10.1]} 11. Rc1
{[%clk 0:02:48.4]} 11... Rc8 {[%clk 0:02:06.8]} 12. Nc4 {[%clk 0:02:48.8]} 12...
O-O {[%clk 0:01:53.4]} 13. Nfe5 {[%clk 0:02:46.3]} 13... Nxe5 {[%clk 0:01:51.8]}
14. Nxe5 {[%clk 0:02:46.5]} 14... Nd5 {[%clk 0:01:52.3]} 15. Qd2 {[%clk
0:02:08.5]} 15... Bg5 {[%clk 0:01:27]} 16. f4 {[%clk 0:02:02.3]} 16... Bf6
{[%clk 0:01:26.8]} 17. Bxd5 {[%clk 0:01:47]} 17... Qxd5 {[%clk 0:01:27.3]} 18.
Nf3 {[%clk 0:01:47.9]} 18... Rfe8 {[%clk 0:01:24.3]} 19. Rfe1 {[%clk 0:01:30.7]}
19... b6 {[%clk 0:01:21.7]} 20. b4 {[%clk 0:01:25.4]} 20... Re3 {[%clk
0:01:07.7]} 21. bxc5 {[%clk 0:01:25.2]} 21... bxc5 {[%clk 0:01:08.6]} 22. Qa5
{[%clk 0:00:57.2]} 22... Bxd3 {[%clk 0:00:53.1]} 23. Nxd4 {[%clk 0:00:57.2]}
23... Bxd4 {[%clk 0:00:50.6]} 24. Bxd4 {[%clk 0:00:45.9]} 24... Qxd4 {[%clk
0:00:51.5]} 25. Kf1 {[%clk 0:00:25.6]} 25... Rf3+ {[%clk 0:00:51.6]} 26. Kg2
{[%clk 0:00:26.1]} 26... Rf2+ {[%clk 0:00:52.3]} 27. Kh3 {[%clk 0:00:26.7]}
27... Bf5+ {[%clk 0:00:46.9]} 28. g4 {[%clk 0:00:20.4]} 28... Qe3+ {[%clk
0:00:46.2]} 29. Kh4 {[%clk 0:00:20.7]} 29... Rxh2# {[%clk 0:00:46.4]} 0-1